bitfinex/quotes_ETHUSD_20251215
["timestamp","ask_amount","ask_price","bid_price","bid_amount"]
[1765818907922,4.30163772,2976.6,2976.5,0.002]
[1765818909105,4.33515667,2976.6,2976.5,0.002]
[1765818909542,4.74066067,2976.6,2976.5,0.002]
[1765818909746,5.28761701,2976.6,2976.5,0.002]
[1765818910241,4.30163772,2976.6,2976.5,0.002]
[1765818910532,5.27766067,2976.6,2976.5,0.002]
[1765818910837,5.24414172,2976.6,2976.5,0.002]
[1765818911139,0.405504,2976.5,2976.3,0.002]
[1765818911340,0.405504,2976.5,2975.9,0.002]
[1765818911341,0.405504,2976.1,2975.9,0.002]
[1765818911639,1.43062295,2976.0,2975.9,0.002]
[1765818912034,1.91762295,2976.0,2975.9,0.002]
[1765818912233,5.43608135,2976.0,2975.9,0.002]
[1765818913037,5.49650431,2976.0,2975.9,0.002]
[1765818913431,4.49357735,2976.0,2975.9,0.002]
[1765818913635,4.83881505,2976.0,2975.9,0.002]
[1765818914233,4.30181505,2976.0,2975.9,0.002]
[1765818914823,0.9416,2976.0,2975.9,0.002]
[1765818915046,0.537,2976.1,2975.9,0.002]
[1765818915249,3.35959822,2976.6,2976.0,0.49]
[1765818915250,0.4874,2976.6,2976.0,0.49]
[1765818915416,3.35953772,2976.6,2975.9,0.002]
[1765818915617,3.35953772,2976.6,2975.9,0.4738]
[1765818915823,3.89648257,2976.7,2975.9,0.4738]
[1765818916027,7.25596514,2976.7,2975.9,0.4738]
[1765818916352,3.35965059,2976.5,2975.9,0.002]
[1765818916718,3.35965059,2976.5,2975.9,0.73255829]
[1765818916920,7.24022013,2976.5,2975.9,0.73255829]
[1765818917146,7.20670118,2976.5,2975.9,0.73255829]
[1765818917354,0.4546,2976.0,2975.9,0.002]
[1765818917857,0.97511895,2976.0,2975.9,0.002]
[1765818918027,0.9416,2976.0,2975.9,0.002]
[1765818918226,3.35965059,2976.5,2975.9,3.85228997]
[1765818918478,0.537,2976.4,2975.9,0.492]
[1765818918636,0.4546,2976.0,2975.9,0.002]
[1765818918839,1.0244,2976.4,2975.9,0.002]
[1765818919038,1.0236,2976.4,2975.9,3.36232428]
[1765818919237,0.5362,2976.4,2975.9,0.002]
[1765818919637,0.4546,2976.0,2975.9,0.002]
[1765818919850,0.9416,2976.0,2975.9,0.002]
[1765818920256,4.30181505,2976.0,2975.9,0.002]
[1765818920571,4.335334,2976.0,2975.9,0.002]
[1765818920859,4.83881505,2976.0,2975.9,0.002]
[1765818921159,5.58301175,2976.0,2975.9,0.002]
[1765818921356,5.6165307,2976.0,2975.9,0.002]
[1765818921559,5.98851575,2976.0,2975.9,0.002]
[1765818921762,0.98597929,2975.9,2975.4,0.002]
[1765818921937,0.98597929,2975.9,2975.3,0.002]
[1765818921938,0.4454,2975.5,2975.3,0.002]
[1765818922280,1.26277529,2975.9,2975.3,0.002]
[1765818922281,1.21295012,2975.8,2975.3,0.002]
[1765818922581,3.55526143,2975.9,2975.3,0.002]
[1765818923280,0.537,2976.3,2975.3,0.002]
[1765818923281,0.1949,2976.2,2975.3,1.05427529]
[1765818923494,3.55489235,2976.2,2975.3,1.05427529]
[1765818923786,6.9148847,2976.2,2975.3,1.05427529]
[1765818923980,7.70881317,2976.2,2975.3,0.58247529]
[1765818924182,0.52091895,2976.1,2975.3,0.002]
[1765818924388,3.36021505,2976.0,2975.3,0.58247529]
[1765818924578,3.8438594,2976.0,2975.3,0.58247529]
[1765818924777,4.3312594,2976.0,2975.3,0.58247529]
[1765818925085,0.4874,2975.9,2975.3,0.58247529]
[1765818926801,3.55491171,2976.2,2975.5,0.58047529]
[1765818926986,0.1949,2976.2,2975.8,0.49]
[1765818927304,1.0244,2976.4,2975.8,0.49]
[1765818927600,3.8967964,2976.4,2975.8,0.49]
[1765818928265,3.8967964,2976.4,2975.5,0.58047529]
[1765818928266,0.4874,2976.3,2975.5,0.58047529]
[1765818928586,0.4874,2976.3,2975.4,0.58047529]
[1765818928898,0.03351895,2976.2,2975.4,0.58047529]
[1765818929216,6.72020428,2976.1,2975.3,0.002]
[1765818929396,0.537,2976.0,2975.3,0.002]
[1765818929700,1.0244,2976.0,2975.3,0.002]
[1765818929927,1.0244,2976.0,2975.3,3.36299638]
[1765818930129,0.537,2976.0,2975.3,0.002]
[1765818930423,0.537,2976.0,2975.4,3.36086696]
[1765818930587,1.74011732,2976.0,2975.3,3.94342513]
[1765818930919,0.537,2976.0,2975.4,6.7217652]
[1765818931114,3.61499696,2976.5,2975.9,0.4765]
[1765818931330,3.61499696,2976.5,2975.8,0.4891]
[1765818931625,3.61499696,2976.5,2975.3,1.07157529]
[1765818931626,0.4774,2976.4,2975.3,1.07157529]
[1765818931801,1.2226071,2976.4,2975.4,0.83308125]
[1765818931999,4.043374,2976.5,2975.4,1.28468125]
[1765818932294,3.55399749,2977.0,2976.4,0.5677]
[1765818932496,0.1949,2977.0,2976.5,0.4609]
[1765818933089,3.55400591,2977.0,2976.5,0.4609]
[1765818933410,3.55400591,2977.0,2976.2,0.58047529]
[1765818933411,0.4579,2976.6,2976.2,0.58047529]
[1765818933609,0.89790059,2976.9,2976.1,3.36000545]
[1765818934127,0.89790059,2976.9,2976.0,0.181]
[1765818934128,0.52231895,2976.8,2976.0,0.181]
[1765818934424,0.4888,2976.8,2976.1,3.48603703]
[1765818934798,0.942504,2976.7,2975.9,0.58047529]
[1765818935200,7.20787544,2976.6,2975.9,3.94076209]
[1765818935397,7.20787544,2976.6,2975.9,0.58047529]
[1765818935926,7.20787544,2976.6,2975.8,3.36039025]
[1765818935927,0.4621,2976.0,2975.3,0.002]
[1765818936090,0.03351895,2975.9,2975.3,0.002]
[1765818936284,0.1809,2975.9,2975.4,0.58047529]
[1765818936704,0.4888,2975.8,2975.3,0.002]
[1765818937348,0.1809,2975.9,2975.3,0.58247529]
[1765818937716,0.1809,2975.9,2975.3,1.41180039]
[1765818938504,0.1809,2975.9,2975.3,0.58247529]
[1765818939143,3.3601114,2976.1,2975.3,0.58247529]
[1765818939303,0.4579,2975.4,2975.3,0.002]
[1765818939817,0.9463,2975.4,2975.3,0.002]
[1765818941365,4.30719265,2975.4,2975.3,0.002]
[1765818941928,5.07398372,2975.4,2975.3,0.002]
[1765818942133,3.81879265,2975.4,2975.3,0.002]
[1765818942859,0.06142296,2975.8,2975.3,0.002]
[1765818943039,0.55022296,2975.8,2975.3,0.002]
[1765818943245,0.001,2975.8,2975.4,3.36089265]
[1765818943441,0.001,2975.8,2975.7,0.4609]
[1765818943951,0.001,2975.8,2975.7,0.9125]
[1765818944373,0.4631,2975.8,2975.4,0.58047529]
[1765818944545,0.4631,2975.8,2975.3,0.539]
[1765818944546,0.4843,2975.7,2975.3,0.539]
[1765818945076,0.4621,2975.4,2975.3,0.002]
[1765818945247,0.4843,2975.7,2975.3,0.002]
[1765818945577,3.36066675,2975.6,2975.3,0.002]
[1765818945743,3.36061062,2975.7,2975.3,0.002]
[1765818945932,3.89849173,2975.8,2975.3,0.002]
[1765818946133,0.4888,2975.7,2975.3,0.002]
[1765818946766,4.63041979,2975.8,2975.3,0.002]
[1765818947467,0.4579,2975.4,2975.3,0.002]
[1765818947967,11.35140325,2975.8,2975.3,0.9145]
[1765818947968,0.001,2975.8,2975.3,0.9145]
[1765818948128,7.21072433,2975.8,2975.3,0.002]
[1765818948451,7.93783906,2975.8,2975.3,0.002]
[1765818948678,0.4888,2975.7,2975.3,0.002]
[1765818948879,7.93783906,2975.8,2975.3,0.002]
[1765818949058,0.4621,2975.4,2975.3,0.002]
[1765818949466,4.3408116,2975.4,2975.3,0.002]
[1765818949680,5.14386665,2975.4,2975.3,0.002]
[1765818949881,5.04992474,2975.4,2975.3,0.002]
[1765818950080,5.58692474,2975.4,2975.3,0.002]
[1765818950481,5.62044369,2975.4,2975.3,0.002]
[1765818950679,5.68086665,2975.4,2975.3,0.002]
[1765818953397,0.405504,2975.3,2974.7,0.002]
[1765818953594,0.405504,2975.3,2974.1,0.002]
[1765818953595,0.405504,2974.7,2974.1,0.002]
[1765818953904,0.405504,2974.1,2972.3,1.1696]
[1765818954084,0.643,2973.6,2972.4,3.36428475]
[1765818954405,1.18,2973.6,2972.3,0.6326]
[1765818954568,1.6688,2973.6,2972.0,0.4516]
[1765818954777,1.6688,2973.6,2972.1,0.181]
[1765818954991,1.6688,2973.6,2972.2,3.36447903]
[1765818955361,1.6688,2973.6,2972.3,7.76081724]
[1765818955566,1.6688,2973.6,2972.3,0.4516]
[1765818955798,1.6688,2973.6,2972.3,3.81594611]
[1765818956094,5.06524604,2973.6,2972.1,0.181]
[1765818956295,0.58047529,2973.5,2972.1,0.1339]
[1765818956502,0.537,2973.4,2972.2,0.58047529]
[1765818956799,0.57051895,2973.4,2972.2,0.58047529]
[1765818957101,0.405504,2973.3,2972.1,0.181]
[1765818957277,1.0268,2973.2,2972.2,1.03207529]
[1765818957469,1.0268,2973.2,2972.2,0.4516]
[1765818957694,1.0268,2973.2,2972.2,1.03207529]
[1765818957864,0.4888,2973.2,2972.3,0.002]
[1765818958064,6.72721156,2973.0,2972.3,0.002]
[1765818958265,0.03351895,2972.9,2972.3,0.002]
[1765818958495,0.4621,2972.4,2972.3,0.002]
[1765818958886,0.538,2972.8,2972.3,0.002]
[1765818959103,0.539,2973.4,2972.4,0.4516]
[1765818959570,0.4888,2973.3,2972.3,0.58247529]
[1765818959792,0.4888,2973.3,2972.3,1.03407529]
[1765818960006,3.36337952,2973.2,2972.4,0.77630819]
[1765818960309,0.03351895,2973.1,2972.3,0.002]
[1765818960475,0.4888,2973.1,2972.3,0.002]
[1765818960809,0.57251895,2973.0,2972.3,0.002]
[1765818960967,0.03351895,2973.0,2972.3,0.002]
[1765818961318,0.4888,2973.4,2972.3,0.4536]
[1765818961466,0.539,2973.3,2972.4,0.58047529]
[1765818961670,0.4888,2973.4,2972.5,0.77628356]
[1765818961870,0.4888,2973.4,2972.5,1.23468356]
[1765818962105,0.1809,2973.6,2972.6,3.8224584]
[1765818962292,6.90680446,2973.6,2972.6,0.4584]
[1765818962485,0.03351895,2973.5,2972.6,0.4584]
[1765818962798,1.58214903,2973.5,2972.3,0.002]
[1765818963098,1.54863008,2973.5,2972.5,0.58047529]
[1765818963484,0.4644,2973.4,2972.5,0.58047529]
[1765818963689,0.57251895,2973.3,2972.3,0.002]
[1765818964000,3.36337952,2973.2,2972.3,0.002]
[1765818964199,3.90237952,2973.2,2972.5,0.58047529]
[1765818964387,3.36337952,2973.2,2972.5,1.02099129]
[1765818964571,6.72675904,2973.2,2972.5,0.440516]
[1765818964768,6.72675904,2973.2,2972.4,0.4584]
[1765818964999,7.19115904,2973.2,2972.4,0.4584]
[1765818965202,0.03351895,2973.1,2972.3,0.58247529]
[1765818965402,0.03351895,2973.1,2972.3,0.002]
[1765818965589,0.4954,2972.4,2972.3,0.002]
[1765818965773,0.6785,2972.4,2972.3,0.002]
[1765818966174,0.1831,2972.7,2972.3,0.002]
[1765818966405,0.539,2973.3,2972.5,0.4543]
[1765818966703,0.49791895,2973.2,2972.3,0.002]
[1765818967201,0.6785,2972.4,2972.3,0.002]
[1765818967711,1.1429,2972.4,2972.3,0.002]
[1765818968004,1.6829,2972.4,2972.3,0.002]
[1765818968300,5.04718475,2972.4,2972.3,0.002]
[1765818968603,5.82394248,2972.4,2972.3,0.002]
[1765818968803,6.19592753,2972.4,2972.3,0.002]
[1765818969020,0.405504,2972.3,2971.1,0.002]
[1765818969299,0.57351895,2972.2,2971.1,0.002]
[1765818969700,0.4644,2972.1,2971.1,0.002]
[1765818969905,0.49791895,2972.1,2971.1,0.39772808]
[1765818970205,10.09421265,2972.0,2971.1,0.002]
[1765818970409,0.6785,2971.2,2971.1,0.002]
[1765818970613,1.2185,2971.2,2971.1,0.002]
[1765818970773,0.6785,2971.2,2971.1,0.002]
[1765818971133,0.6475,2971.9,2971.1,4.47955444]
[1765818971305,0.6475,2971.9,2971.2,0.44883827]
[1765818971509,0.4949,2971.2,2969.1,11.57931967]
[1765818971690,0.1831,2970.8,2970.1,0.1296]
[1765818972028,0.4644,2971.7,2970.1,0.588]
[1765818972313,3.36575679,2971.1,2970.2,0.58047529]
[1765818972530,0.4644,2971.7,2970.3,0.45353235]
[1765818972689,0.1831,2971.9,2970.1,6.86333824]
[1765818972690,0.541,2971.5,2970.1,0.1296]
[1765818973028,0.541,2971.5,2971.0,0.002]
[1765818973181,10.55997138,2971.6,2971.0,0.002]
[1765818973182,0.4928,2971.1,2971.0,0.002]
[1765818973379,0.4644,2971.4,2971.0,0.002]
[1765818973380,1.0054,2971.4,2971.0,0.002]
[1765818973593,1.77897809,2971.4,2971.0,0.002]
[1765818974115,3.36496399,2971.8,2971.1,0.1991]
[1765818974299,0.03351895,2971.7,2971.1,0.1991]
[1765818974503,0.03351895,2972.2,2971.2,0.58047529]
[1765818974693,3.36439794,2972.3,2971.2,0.58047529]
[1765818975008,3.36439794,2972.3,2971.3,1.25534539]
[1765818975009,0.03351895,2972.2,2971.3,1.25534539]
[1765818975217,0.49791895,2972.2,2971.3,1.25534539]
[1765818975415,0.4644,2972.2,2971.3,1.25534539]
[1765818975574,0.1831,2972.4,2971.4,0.4584]
[1765818975934,0.1831,2972.7,2971.4,1.57987529]
[1765818976075,0.1831,2972.7,2971.7,0.58047529]
[1765818976574,6.91103048,2972.7,2971.8,0.4584]
[1765818976912,3.54706524,2972.7,2971.8,0.4584]
[1765818977112,1.18901004,2972.6,2971.5,1.54154624]
[1765818977278,0.541,2972.5,2971.5,1.54154624]
[1765818977479,0.03351895,2972.4,2971.6,0.58047529]
[1765818977809,1.0054,2972.5,2971.6,1.03887529]
[1765818978379,1.0054,2972.5,2971.8,0.58047529]
[1765818978380,3.36418593,2972.5,2971.8,0.58047529]
[1765818978581,7.22629081,2972.5,2971.6,3.94562023]
[1765818978787,3.82858593,2972.5,2971.7,0.73108359]
[1765818979011,6.72837186,2972.5,2971.4,0.4584]
[1765818979310,0.4644,2972.4,2971.6,3.9456287]
[1765818979486,6.72837186,2972.5,2971.6,3.9456287]
[1765818979686,0.4644,2972.4,2971.4,0.4584]
[1765818979895,0.03351895,2972.3,2971.2,3.36556952]
[1765818980194,0.03351895,2972.3,2971.3,0.58047529]
[1765818980195,0.71927719,2972.3,2971.3,0.58047529]
[1765818980509,7.73542226,2972.2,2971.5,0.002]
[1765818980711,3.82891113,2972.2,2971.5,0.002]
[1765818981407,0.6475,2972.7,2971.6,0.4584]
[1765818981607,7.37543233,2972.7,2971.6,0.4584]
[1765818981807,0.4644,2972.6,2971.5,0.002]
[1765818982352,0.4644,2972.6,2971.7,3.36507722]
[1765818982477,0.4644,2972.6,2971.7,7.18855444]
[1765818982478,3.82846725,2972.6,2971.7,7.18855444]
[1765818982676,0.542,2972.8,2971.8,1.03887529]
[1765818982906,3.42394736,2973.1,2971.8,1.03887529]
[1765818983122,3.3635244,2973.1,2971.9,1.6054592]
[1765818983278,0.4644,2973.3,2972.0,0.405504]
[1765818983480,3.36315329,2973.4,2972.1,0.6575]
[1765818983723,3.36409384,2973.5,2972.2,1.0004]
[1765818984138,0.542,2973.6,2972.3,0.4584]
[1765818984421,3.36247478,2974.0,2972.8,0.58047529]
[1765818984620,3.36247478,2974.0,2972.9,0.73083658]
[1765818984785,3.36247478,2974.0,2972.9,1.18923658]
[1765818984981,3.36247478,2974.0,2973.0,0.4584]
[1765818985220,3.3624116,2974.1,2973.1,0.1991]
[1765818985429,0.542,2974.3,2973.1,0.1991]
[1765818985430,3.36217183,2974.3,2973.1,0.1991]
[1765818985609,0.4654,2974.7,2973.2,0.4584]
[1765818986160,3.36189756,2974.6,2973.3,0.405504]
[1765818986320,3.36190956,2974.5,2973.5,0.58047529]
[1765818986511,6.72381912,2974.5,2973.6,0.78487819]
[1765818986722,0.03351895,2974.4,2973.6,0.78487819]
[1765818987364,3.36190956,2974.5,2973.6,0.78487819]
[1765818987651,3.36190956,2974.5,2973.7,0.4584]
[1765818987950,3.36270527,2974.7,2973.7,0.4584]
[1765818988153,3.3627068,2974.7,2973.7,0.4584]
[1765818988458,3.3627068,2974.7,2973.9,0.58047529]
[1765818988618,3.3627068,2974.7,2973.9,1.356903]
[1765818988951,0.001,2974.7,2974.6,0.5882]
[1765818989637,0.001,2974.7,2974.4,0.1991]
[1765818989952,0.001,2974.6,2974.4,0.1991]
[1765818990137,0.001,2974.6,2974.5,0.9251]
[1765818990459,0.001,2974.6,2974.5,4.86748485]
[1765818990757,0.001,2974.6,2974.5,1.50557529]
[1765818990915,0.001,2974.6,2974.5,1.05257529]
[1765818991914,0.001,2974.6,2974.5,0.4721]
[1765818992116,0.001,2974.6,2974.1,0.1949]
[1765818992322,0.498,2974.5,2973.8,0.1984]
[1765818992524,3.85999061,2974.5,2973.9,3.36258329]
[1765818992824,3.85992564,2974.5,2973.9,0.58047529]
[1765818993026,7.94422385,2974.5,2973.8,0.1984]
[1765818993331,3.36192564,2974.5,2973.9,0.58047529]
[1765818994069,0.001,2974.6,2974.0,0.4971]
[1765818994232,0.001,2974.6,2973.9,0.58047529]
[1765818994233,3.3628118,2974.6,2973.9,0.58047529]
[1765818994572,0.001,2974.6,2974.0,3.36247478]
[1765818994730,0.001,2974.6,2974.1,0.58047529]
[1765818994931,0.001,2974.6,2974.2,0.73054249]
[1765818995164,0.001,2974.6,2974.5,0.4978]
[1765818995361,0.001,2974.6,2974.3,1.07757529]
[1765818995728,0.001,2974.6,2974.1,0.58047529]
[1765818995932,0.001,2974.6,2974.5,0.4978]
[1765818996166,0.001,2974.6,2974.5,0.9949]
[1765818996366,0.001,2974.6,2974.5,1.20653753]
[1765818996869,0.001,2974.6,2974.5,5.14892238]
[1765818997068,0.001,2974.6,2974.5,5.55442638]
[1765818998257,0.001,2974.7,2974.6,0.98597929]
[1765818998456,0.001,2974.7,2974.6,8.86527556]
[1765818998661,0.001,2975.8,2974.9,0.98597929]
[1765818998865,0.001,2975.8,2975.3,8.43027556]
[1765818999066,0.001,2975.7,2975.3,8.43027556]
[1765818999261,0.001,2975.7,2975.3,8.92737556]
[1765819000841,0.001,2975.7,2975.3,12.28838117]
[1765819001266,0.001,2975.7,2975.3,5.9449849]
[1765819003975,0.001,2976.6,2975.8,0.405504]
[1765819004281,0.001,2976.6,2976.0,0.405504]
[1765819004645,0.001,2976.6,2976.1,0.6955]
[1765819005370,0.001,2976.6,2976.1,1.27597529]
[1765819005566,0.001,2976.6,2976.5,0.4978]
[1765819006181,0.001,2976.6,2976.5,0.9949]
[1765819006676,0.001,2976.6,2976.5,8.45977156]
[1765819006979,0.001,2976.6,2976.5,2.47545245]
[1765819007276,0.001,2976.6,2976.5,4.93502588]
[1765819007476,0.001,2976.6,2976.5,1.57537529]
[1765819007777,0.001,2976.6,2976.5,0.58047529]
[1765819008176,0.001,2976.6,2976.5,4.43792588]
[1765819008346,0.001,2976.6,2976.5,4.93502588]
[1765819008546,0.001,2976.6,2976.5,3.94012588]
[1765819008793,0.001,2976.6,2976.5,0.58047529]
[1765819008946,0.001,2976.6,2976.1,0.6955]
[1765819009155,0.001,2976.6,2976.2,0.54]
[1765819009977,0.001,2976.6,2976.1,0.1984]
[1765819010273,0.001,2976.6,2975.3,3.42304845]
[1765819010274,0.4253,2976.2,2975.3,0.0621]
[1765819010477,0.0043,2976.0,2975.4,3.36083332]
[1765819010655,0.498,2976.5,2975.5,0.58047529]
[1765819010858,0.498,2976.5,2975.3,1.0992]
[1765819010859,0.03351895,2976.4,2975.3,1.0992]
[1765819011067,0.03351895,2976.4,2975.3,1.60328721]
[1765819011267,7.2177527,2976.3,2975.4,0.58047529]
[1765819011473,10.57762905,2976.3,2975.3,0.5592]
[1765819011676,0.498,2976.2,2975.3,0.0621]
[1765819011980,0.72177527,2976.1,2975.3,0.64257529]
[1765819012180,0.72177527,2976.1,2975.0,0.4971]
[1765819012481,0.498,2976.0,2975.2,0.58047529]
[1765819013074,0.498,2976.0,2975.0,0.58047529]
[1765819013075,0.1911,2975.9,2975.0,0.58047529]
[1765819013481,7.21888176,2975.8,2974.8,0.7384]
[1765819013645,0.6164,2974.9,2973.9,0.4971]
[1765819013847,0.0043,2974.7,2973.9,0.4971]
[1765819014044,0.0043,2974.7,2973.8,3.56109361]
[1765819014045,0.0043,2974.7,2973.8,0.1984]
[1765819014249,0.498,2974.6,2973.8,0.1984]
[1765819014980,0.498,2974.6,2973.4,3.36310276]
[1765819015178,0.03351895,2974.5,2973.4,0.58047529]
[1765819015679,0.405504,2974.3,2972.8,3.36382153]
[1765819015879,0.54,2974.2,2973.0,3.36356483]
[1765819016184,0.54,2974.2,2972.4,0.54]
[1765819016185,1.07151895,2974.2,2972.6,3.36405264]
[1765819016481,0.54,2974.1,2972.6,0.58047529]
[1765819016683,0.498,2974.2,2972.5,6.88439627]
[1765819016684,0.498,2974.2,2973.3,3.3631916]
[1765819016883,0.541,2974.1,2973.1,3.36339114]
[1765819017085,0.498,2974.2,2973.2,3.36333586]
[1765819017291,0.541,2974.1,2973.1,0.58047529]
[1765819017585,0.541,2974.1,2973.4,0.58047529]
[1765819017787,3.90344873,2974.1,2973.4,0.58047529]
[1765819018169,7.26589746,2974.1,2973.3,0.58047529]
[1765819018387,4.63219737,2974.1,2973.4,0.58047529]
[1765819018951,4.63219737,2974.1,2972.7,0.74648716]
[1765819018952,0.1911,2973.5,2972.7,0.74648716]
[1765819019158,0.541,2973.4,2972.8,3.36373797]
[1765819019377,0.541,2973.4,2972.9,3.94416119]
[1765819019575,0.498,2973.7,2973.1,0.58047529]
[1765819019777,0.541,2973.6,2973.2,3.3633193]
[1765819019955,0.541,2973.6,2973.0,3.36349567]
[1765819019956,0.541,2973.6,2973.1,3.94392248]
[1765819021261,0.541,2973.6,2973.3,0.002]
[1765819021582,0.541,2973.5,2973.3,0.002]
[1765819021953,4.1035192,2974.0,2973.3,0.002]
[1765819022157,0.54,2973.9,2973.3,0.002]
[1765819022781,0.76226759,2973.8,2973.3,0.002]
[1765819022992,0.4979,2973.4,2973.3,0.002]
[1765819023486,0.9547,2973.4,2973.3,0.002]
[1765819023713,0.72874864,2973.8,2973.3,0.002]
[1765819023999,0.54,2973.4,2973.3,0.002]
[1765819024202,4.02620131,2974.2,2973.3,0.002]
[1765819024203,0.4568,2974.1,2973.3,0.002]
[1765819024403,0.4568,2974.6,2973.5,0.58047529]
[1765819024582,0.54,2974.5,2973.6,0.91928005]
[1765819026380,0.54,2974.5,2973.8,0.58047529]
[1765819028478,0.54,2974.5,2974.0,0.58047529]
[1765819029629,0.4979,2974.1,2973.8,0.002]
[1765819029933,0.6781,2973.9,2973.8,0.002]
[1765819030080,0.54,2973.9,2973.8,0.002]
[1765819030476,4.85728784,2973.9,2973.8,0.002]
[1765819030708,5.34301662,2973.9,2973.8,0.002]
[1765819030997,1.02572878,2973.9,2973.8,0.002]
[1765819031787,4.38831662,2973.9,2973.8,0.002]
[1765819032505,5.34301662,2973.9,2973.8,0.002]
[1765819032693,4.80301662,2973.9,2973.3,0.002]
[1765819032898,1.35655161,2973.8,2973.3,0.002]
[1765819033495,0.1802,2974.4,2973.3,0.58247529]
[1765819033698,0.54,2974.3,2973.3,0.58247529]
[1765819034420,3.90216901,2974.3,2973.5,0.58047529]
[1765819034617,0.54,2974.3,2973.5,0.58047529]
[1765819035292,3.90214106,2974.3,2973.5,0.58047529]
[1765819035491,0.54,2974.3,2973.5,1.31135348]
[1765819036887,3.90215468,2974.3,2973.7,0.58047529]
[1765819037094,0.4568,2974.2,2973.3,0.002]
[1765819037288,0.4568,2974.2,2973.5,0.58047529]
[1765819037718,0.4568,2974.2,2973.5,3.94348418]
[1765819037918,0.4568,2974.2,2973.5,7.30652436]
[1765819038119,0.54,2974.3,2973.5,7.30652436]
[1765819038330,3.90220469,2974.3,2973.5,7.30652436]
[1765819038623,4.35900469,2974.3,2973.5,7.30652436]
[1765819039118,4.35900469,2974.3,2973.3,0.002]
[1765819039119,0.4568,2974.2,2973.3,0.002]
[1765819039318,7.26440938,2974.3,2973.3,0.002]
[1765819039319,0.77212094,2974.1,2973.5,3.36298872]
[1765819039624,3.36220469,2974.3,2973.6,0.58047529]
[1765819039830,0.54,2974.0,2973.6,0.58047529]
[1765819040919,0.54,2974.0,2973.7,3.362814]
[1765819041124,0.001,2974.5,2973.8,0.58047529]
[1765819041447,0.001,2974.5,2974.2,0.58047529]
[1765819041926,0.001,2974.5,2973.9,1.06689173]
[1765819042392,0.001,2974.5,2973.8,0.58047529]
[1765819043011,0.001,2974.5,2974.0,0.58047529]
[1765819043916,0.001,2974.5,2974.4,0.58047529]
[1765819045034,0.001,2974.5,2974.4,3.94249788]
[1765819046328,0.001,2974.5,2974.4,4.34800188]
[1765819046529,0.001,2974.5,2974.2,3.36217587]
[1765819046715,0.001,2974.5,2974.3,0.58047529]
[1765819047039,0.001,2974.5,2974.4,0.58047529]
[1765819047236,0.001,2974.5,2974.4,3.94249788]
[1765819047662,0.001,2974.5,2974.4,4.672961]
[1765819048024,0.001,2974.5,2974.4,1.31093841]
[1765819048356,0.001,2974.5,2974.4,0.58047529]
[1765819048517,0.9557,2974.5,2973.3,0.542]
[1765819048719,0.001,2974.5,2974.2,3.36217626]
[1765819049551,0.001,2974.5,2974.1,0.58047529]
[1765819050553,0.001,2974.5,2974.3,0.405504]
[1765819050724,0.001,2974.5,2974.2,0.405504]
[1765819050925,0.001,2974.5,2974.1,1.31100915]
[1765819050926,0.001,2974.5,2974.1,1.85100915]
[1765819051356,0.001,2974.5,2974.1,0.58047529]
[1765819051727,0.001,2974.5,2974.0,6.72486328]
[1765819051728,0.001,2974.5,2974.3,0.58047529]
[1765819052335,0.001,2974.5,2974.2,0.58047529]
[1765819053656,0.001,2974.5,2974.1,0.58047529]
[1765819053967,0.001,2974.5,2974.2,0.58047529]
[1765819054422,0.39126885,2974.5,2974.2,0.58047529]
[1765819054823,0.001,2974.5,2974.2,0.58047529]
[1765819055957,0.001,2974.5,2974.2,3.94268076]
[1765819056322,0.541,2974.5,2974.1,3.94278321]
[1765819056829,0.4599,2974.4,2974.0,0.58047529]
[1765819057049,0.541,2974.5,2974.0,0.58047529]
[1765819057572,0.541,2974.5,2974.0,3.94289411]
[1765819057777,0.541,2974.5,2974.2,0.58047529]
[1765819058073,0.001,2974.5,2974.2,7.30490958]
[1765819058239,0.001,2974.5,2974.3,0.03362135]
[1765819058759,0.001,2974.5,2974.3,0.405504]
[1765819059459,0.001,2974.5,2974.4,0.945504]
[1765819059846,0.001,2974.5,2974.4,0.54]
[1765819060041,0.001,2974.5,2974.4,5.58734671]
[1765819060456,0.001,2974.5,2974.4,3.94249788]
[1765819063480,0.001,2974.5,2974.4,4.34800188]
[1765819065597,0.001,2975.7,2974.5,0.98597929]
[1765819065810,0.001,2975.7,2974.8,0.58047529]
[1765819066089,0.001,2975.7,2974.6,0.54]
[1765819066580,0.4599,2975.6,2974.6,3.36174032]
[1765819066787,0.663,2974.7,2973.8,0.002]
[1765819066970,0.663,2974.7,2974.3,0.58047529]
[1765819067153,0.54,2974.8,2974.3,3.94255303]
[1765819067356,0.9999,2974.8,2973.8,3.36467966]
[1765819067554,0.9999,2974.8,2973.9,0.33646797]
[1765819067856,0.54,2974.8,2974.2,3.36222593]
[1765819068052,0.54,2974.8,2974.3,3.36206058]
[1765819068287,0.54,2974.8,2974.4,3.36199271]
[1765819069269,0.54,2974.8,2974.0,0.58047529]
[1765819069467,0.54,2974.8,2974.2,0.58047529]
[1765819070387,0.539,2975.2,2974.2,0.58047529]
[1765819071270,3.90016969,2975.2,2974.3,6.72427124]
[1765819071466,0.539,2975.2,2974.3,6.72427124]
[1765819071771,3.90014517,2975.2,2974.3,6.72427124]
[1765819071970,3.90014517,2975.2,2974.3,7.79096827]
[1765819072372,0.539,2975.2,2974.3,7.79096827]
[1765819072907,3.90014164,2975.2,2974.3,7.79096827]
[1765819073102,4.36004164,2975.2,2974.3,7.79096827]
[1765819073310,0.001,2974.8,2974.3,7.79096827]
[1765819075507,0.4609,2974.8,2974.0,3.3624411]
[1765819075674,0.001,2974.8,2974.3,3.3621249]